Workbook

Sheet Analysis (hidden)
B4: category | C4: age
B5: 1 | C5: 18 - 59
B6: 2 | C6: 60 - 69
B7: 3 | C7: 70+
G14: Vaccination rate | H14: Planned vaccination rate
B15: Zeilenbeschriftungen | C15: Anzahl von SaveID | D15: Vaccination rate | E15: Planned vaccination rate | G15: =GETPIVOTDATA("[Measures].[Vaccination rate]",$B$15) -> 0.3619276145 | H15: =GETPIVOTDATA("[Measures].[Planned vaccination rate]",$B$15) -> 0.1923615277 | J15: Land | K15: Bundesland | L15: Impfquote
B16: Baden-Württemberg | C16: 637 | D16: 0.3406593407 | E16: 0.1930926217 | G16: =GETPIVOTDATA("[Measures].[Vaccination rate]",$B$15,"[Influenza_Dashboard_raw data].[QMktSize_6_1]","[Influenza_Dashboard_raw data].[QMktSize_6_1].&[Baden-Württemberg]") -> 0.3406593407 | H16: =GETPIVOTDATA("[Measures].[Planned vaccination rate]",$B$15,"[Influenza_Dashboard_raw data].[QMktSize_6_1]","[Influenza_Dashboard_raw data].[QMktSize_6_1].&[Baden-Württemberg]") -> 0.1930926217 | J16: Germany | K16: Baden-Württemberg | L16: =_xlfn.IFS(Dashboard!$AL$28="Geimpft", Analysis!G16, Dashboard!$AL$28="Impfung geplant", Analysis!H16, Dashboard!$AL$28="Geimpft & Impfung geplant", (Analysis!G16+Analysis!H16)) -> 0.3406593407
B17: Bayern | C17: 781 | D17: 0.3469910371 | E17: 0.1434058899 | G17: =GETPIVOTDATA("[Measures].[Vaccination rate]",$B$15,"[Influenza_Dashboard_raw data].[QMktSize_6_1]","[Influenza_Dashboard_raw data].[QMktSize_6_1].&[Bayern]") -> 0.3469910371 | H17: =GETPIVOTDATA("[Measures].[Planned vaccination rate]",$B$15,"[Influenza_Dashboard_raw data].[QMktSize_6_1]","[Influenza_Dashboard_raw data].[QMktSize_6_1].&[Bayern]") -> 0.1434058899 | J17: Germany | K17: Bayern | L17: =_xlfn.IFS(Dashboard!$AL$28="Geimpft", Analysis!G17, Dashboard!$AL$28="Impfung geplant", Analysis!H17, Dashboard!$AL$28="Geimpft & Impfung geplant", (Analysis!G17+Analysis!H17)) -> 0.3469910371
B18: Berlin | C18: 230 | D18: 0.4391304348 | E18: 0.1739130435 | G18: =GETPIVOTDATA("[Measures].[Vaccination rate]",$B$15,"[Influenza_Dashboard_raw data].[QMktSize_6_1]","[Influenza_Dashboard_raw data].[QMktSize_6_1].&[Berlin]") -> 0.4391304348 | H18: =GETPIVOTDATA("[Measures].[Planned vaccination rate]",$B$15,"[Influenza_Dashboard_raw data].[QMktSize_6_1]","[Influenza_Dashboard_raw data].[QMktSize_6_1].&[Berlin]") -> 0.1739130435 | J18: Germany | K18: Berlin | L18: =_xlfn.IFS(Dashboard!$AL$28="Geimpft", Analysis!G18, Dashboard!$AL$28="Impfung geplant", Analysis!H18, Dashboard!$AL$28="Geimpft & Impfung geplant", (Analysis!G18+Analysis!H18)) -> 0.4391304348
B19: Brandenburg | C19: 156 | D19: 0.3525641026 | E19: 0.2820512821 | G19: =GETPIVOTDATA("[Measures].[Vaccination rate]",$B$15,"[Influenza_Dashboard_raw data].[QMktSize_6_1]","[Influenza_Dashboard_raw data].[QMktSize_6_1].&[Brandenburg]") -> 0.3525641026 | H19: =GETPIVOTDATA("[Measures].[Planned vaccination rate]",$B$15,"[Influenza_Dashboard_raw data].[QMktSize_6_1]","[Influenza_Dashboard_raw data].[QMktSize_6_1].&[Brandenburg]") -> 0.2820512821 | J19: Germany | K19: Brandenburg | L19: =_xlfn.IFS(Dashboard!$AL$28="Geimpft", Analysis!G19, Dashboard!$AL$28="Impfung geplant", Analysis!H19, Dashboard!$AL$28="Geimpft & Impfung geplant", (Analysis!G19+Analysis!H19)) -> 0.3525641026
B20: Bremen | C20: 38 | D20: 0.2894736842 | E20: 0.1052631579 | G20: =GETPIVOTDATA("[Measures].[Vaccination rate]",$B$15,"[Influenza_Dashboard_raw data].[QMktSize_6_1]","[Influenza_Dashboard_raw data].[QMktSize_6_1].&[Bremen]") -> 0.2894736842 | H20: =GETPIVOTDATA("[Measures].[Planned vaccination rate]",$B$15,"[Influenza_Dashboard_raw data].[QMktSize_6_1]","[Influenza_Dashboard_raw data].[QMktSize_6_1].&[Bremen]") -> 0.1052631579 | J20: Germany | K20: Bremen | L20: =_xlfn.IFS(Dashboard!$AL$28="Geimpft", Analysis!G20, Dashboard!$AL$28="Impfung geplant", Analysis!H20, Dashboard!$AL$28="Geimpft & Impfung geplant", (Analysis!G20+Analysis!H20)) -> 0.2894736842
B21: Hamburg | C21: 112 | D21: 0.4017857143 | E21: 0.1875 | G21: =GETPIVOTDATA("[Measures].[Vaccination rate]",$B$15,"[Influenza_Dashboard_raw data].[QMktSize_6_1]","[Influenza_Dashboard_raw data].[QMktSize_6_1].&[Hamburg]") -> 0.4017857143 | H21: =GETPIVOTDATA("[Measures].[Planned vaccination rate]",$B$15,"[Influenza_Dashboard_raw data].[QMktSize_6_1]","[Influenza_Dashboard_raw data].[QMktSize_6_1].&[Hamburg]") -> 0.1875 | J21: Germany | K21: Hamburg | L21: =_xlfn.IFS(Dashboard!$AL$28="Geimpft", Analysis!G21, Dashboard!$AL$28="Impfung geplant", Analysis!H21, Dashboard!$AL$28="Geimpft & Impfung geplant", (Analysis!G21+Analysis!H21)) -> 0.4017857143
B22: Hessen | C22: 379 | D22: 0.3482849604 | E22: 0.2137203166 | G22: =GETPIVOTDATA("[Measures].[Vaccination rate]",$B$15,"[Influenza_Dashboard_raw data].[QMktSize_6_1]","[Influenza_Dashboard_raw data].[QMktSize_6_1].&[Hessen]") -> 0.3482849604 | H22: =GETPIVOTDATA("[Measures].[Planned vaccination rate]",$B$15,"[Influenza_Dashboard_raw data].[QMktSize_6_1]","[Influenza_Dashboard_raw data].[QMktSize_6_1].&[Hessen]") -> 0.2137203166 | J22: Germany | K22: Hessen | L22: =_xlfn.IFS(Dashboard!$AL$28="Geimpft", Analysis!G22, Dashboard!$AL$28="Impfung geplant", Analysis!H22, Dashboard!$AL$28="Geimpft & Impfung geplant", (Analysis!G22+Analysis!H22)) -> 0.3482849604
B23: Mecklenburg-Vorpommern | C23: 102 | D23: 0.2941176471 | E23: 0.2941176471 | G23: =GETPIVOTDATA("[Measures].[Vaccination rate]",$B$15,"[Influenza_Dashboard_raw data].[QMktSize_6_1]","[Influenza_Dashboard_raw data].[QMktSize_6_1].&[Mecklenburg-Vorpommern]") -> 0.2941176471 | H23: =GETPIVOTDATA("[Measures].[Planned vaccination rate]",$B$15,"[Influenza_Dashboard_raw data].[QMktSize_6_1]","[Influenza_Dashboard_raw data].[QMktSize_6_1].&[Mecklenburg-Vorpommern]") -> 0.2941176471 | J23: Germany | K23: Mecklenburg-Vorpommern | L23: =_xlfn.IFS(Dashboard!$AL$28="Geimpft", Analysis!G23, Dashboard!$AL$28="Impfung geplant", Analysis!H23, Dashboard!$AL$28="Geimpft & Impfung geplant", (Analysis!G23+Analysis!H23)) -> 0.2941176471
B24: Niedersachsen | C24: 483 | D24: 0.3933747412 | E24: 0.1780538302 | G24: =GETPIVOTDATA("[Measures].[Vaccination rate]",$B$15,"[Influenza_Dashboard_raw data].[QMktSize_6_1]","[Influenza_Dashboard_raw data].[QMktSize_6_1].&[Niedersachsen]") -> 0.3933747412 | H24: =GETPIVOTDATA("[Measures].[Planned vaccination rate]",$B$15,"[Influenza_Dashboard_raw data].[QMktSize_6_1]","[Influenza_Dashboard_raw data].[QMktSize_6_1].&[Niedersachsen]") -> 0.1780538302 | J24: Germany | K24: Niedersachsen | L24: =_xlfn.IFS(Dashboard!$AL$28="Geimpft", Analysis!G24, Dashboard!$AL$28="Impfung geplant", Analysis!H24, Dashboard!$AL$28="Geimpft & Impfung geplant", (Analysis!G24+Analysis!H24)) -> 0.3933747412
B25: Nordrhein-Westfalen | C25: 1083 | D25: 0.3924284395 | E25: 0.2040627886 | G25: =GETPIVOTDATA("[Measures].[Vaccination rate]",$B$15,"[Influenza_Dashboard_raw data].[QMktSize_6_1]","[Influenza_Dashboard_raw data].[QMktSize_6_1].&[Nordrhein-Westfalen]") -> 0.3924284395 | H25: =GETPIVOTDATA("[Measures].[Planned vaccination rate]",$B$15,"[Influenza_Dashboard_raw data].[QMktSize_6_1]","[Influenza_Dashboard_raw data].[QMktSize_6_1].&[Nordrhein-Westfalen]") -> 0.2040627886 | J25: Germany | K25: Nordrhein-Westfalen | L25: =_xlfn.IFS(Dashboard!$AL$28="Geimpft", Analysis!G25, Dashboard!$AL$28="Impfung geplant", Analysis!H25, Dashboard!$AL$28="Geimpft & Impfung geplant", (Analysis!G25+Analysis!H25)) -> 0.3924284395
B26: Rheinland-Pfalz | C26: 233 | D26: 0.3090128755 | E26: 0.1845493562 | G26: =GETPIVOTDATA("[Measures].[Vaccination rate]",$B$15,"[Influenza_Dashboard_raw data].[QMktSize_6_1]","[Influenza_Dashboard_raw data].[QMktSize_6_1].&[Rheinland-Pfalz]") -> 0.3090128755 | H26: =GETPIVOTDATA("[Measures].[Planned vaccination rate]",$B$15,"[Influenza_Dashboard_raw data].[QMktSize_6_1]","[Influenza_Dashboard_raw data].[QMktSize_6_1].&[Rheinland-Pfalz]") -> 0.1845493562 | J26: Germany | K26: Rheinland-Pfalz | L26: =_xlfn.IFS(Dashboard!$AL$28="Geimpft", Analysis!G26, Dashboard!$AL$28="Impfung geplant", Analysis!H26, Dashboard!$AL$28="Geimpft & Impfung geplant", (Analysis!G26+Analysis!H26)) -> 0.3090128755
B27: Saarland | C27: 59 | D27: 0.3220338983 | E27: 0.1186440678 | G27: =GETPIVOTDATA("[Measures].[Vaccination rate]",$B$15,"[Influenza_Dashboard_raw data].[QMktSize_6_1]","[Influenza_Dashboard_raw data].[QMktSize_6_1].&[Saarland]") -> 0.3220338983 | H27: =GETPIVOTDATA("[Measures].[Planned vaccination rate]",$B$15,"[Influenza_Dashboard_raw data].[QMktSize_6_1]","[Influenza_Dashboard_raw data].[QMktSize_6_1].&[Saarland]") -> 0.1186440678 | J27: Germany | K27: Saarland | L27: =_xlfn.IFS(Dashboard!$AL$28="Geimpft", Analysis!G27, Dashboard!$AL$28="Impfung geplant", Analysis!H27, Dashboard!$AL$28="Geimpft & Impfung geplant", (Analysis!G27+Analysis!H27)) -> 0.3220338983
B28: Sachsen | C28: 264 | D28: 0.3257575758 | E28: 0.2083333333 | G28: =GETPIVOTDATA("[Measures].[Vaccination rate]",$B$15,"[Influenza_Dashboard_raw data].[QMktSize_6_1]","[Influenza_Dashboard_raw data].[QMktSize_6_1].&[Sachsen]") -> 0.3257575758 | H28: =GETPIVOTDATA("[Measures].[Planned vaccination rate]",$B$15,"[Influenza_Dashboard_raw data].[QMktSize_6_1]","[Influenza_Dashboard_raw data].[QMktSize_6_1].&[Sachsen]") -> 0.2083333333 | J28: Germany | K28: Sachsen | L28: =_xlfn.IFS(Dashboard!$AL$28="Geimpft", Analysis!G28, Dashboard!$AL$28="Impfung geplant", Analysis!H28, Dashboard!$AL$28="Geimpft & Impfung geplant", (Analysis!G28+Analysis!H28)) -> 0.3257575758
B29: Sachsen-Anhalt | C29: 136 | D29: 0.3088235294 | E29: 0.2647058824 | G29: =GETPIVOTDATA("[Measures].[Vaccination rate]",$B$15,"[Influenza_Dashboard_raw data].[QMktSize_6_1]","[Influenza_Dashboard_raw data].[QMktSize_6_1].&[Sachsen-Anhalt]") -> 0.3088235294 | H29: =GETPIVOTDATA("[Measures].[Planned vaccination rate]",$B$15,"[Influenza_Dashboard_raw data].[QMktSize_6_1]","[Influenza_Dashboard_raw data].[QMktSize_6_1].&[Sachsen-Anhalt]") -> 0.2647058824 | J29: Germany | K29: Sachsen-Anhalt | L29: =_xlfn.IFS(Dashboard!$AL$28="Geimpft", Analysis!G29, Dashboard!$AL$28="Impfung geplant", Analysis!H29, Dashboard!$AL$28="Geimpft & Impfung geplant", (Analysis!G29+Analysis!H29)) -> 0.3088235294
B30: Schleswig-Holstein | C30: 177 | D30: 0.3559322034 | E30: 0.2033898305 | G30: =GETPIVOTDATA("[Measures].[Vaccination rate]",$B$15,"[Influenza_Dashboard_raw data].[QMktSize_6_1]","[Influenza_Dashboard_raw data].[QMktSize_6_1].&[Schleswig-Holstein]") -> 0.3559322034 | H30: =GETPIVOTDATA("[Measures].[Planned vaccination rate]",$B$15,"[Influenza_Dashboard_raw data].[QMktSize_6_1]","[Influenza_Dashboard_raw data].[QMktSize_6_1].&[Schleswig-Holstein]") -> 0.2033898305 | J30: Germany | K30: Schleswig-Holstein | L30: =_xlfn.IFS(Dashboard!$AL$28="Geimpft", Analysis!G30, Dashboard!$AL$28="Impfung geplant", Analysis!H30, Dashboard!$AL$28="Geimpft & Impfung geplant", (Analysis!G30+Analysis!H30)) -> 0.3559322034
B31: Thüringen | C31: 131 | D31: 0.3893129771 | E31: 0.1755725191 | G31: =GETPIVOTDATA("[Measures].[Vaccination rate]",$B$15,"[Influenza_Dashboard_raw data].[QMktSize_6_1]","[Influenza_Dashboard_raw data].[QMktSize_6_1].&[Thüringen]") -> 0.3893129771 | H31: =GETPIVOTDATA("[Measures].[Planned vaccination rate]",$B$15,"[Influenza_Dashboard_raw data].[QMktSize_6_1]","[Influenza_Dashboard_raw data].[QMktSize_6_1].&[Thüringen]") -> 0.1755725191 | J31: Germany | K31: Thüringen | L31: =_xlfn.IFS(Dashboard!$AL$28="Geimpft", Analysis!G31, Dashboard!$AL$28="Impfung geplant", Analysis!H31, Dashboard!$AL$28="Geimpft & Impfung geplant", (Analysis!G31+Analysis!H31)) -> 0.3893129771
B32: Gesamtergebnis | C32: 5001 | D32: 0.3619276145 | E32: 0.1923615277 | G32: =GETPIVOTDATA("[Measures].[Vaccination rate]",$B$15) -> 0.3619276145 | H32: =GETPIVOTDATA("[Measures].[Planned vaccination rate]",$B$15) -> 0.1923615277 | J32: Total
G37: Geimpft
G38: Impfung geplant
G39: Geimpft & Impfung geplant
K41: 30
K42: ±
H43: 10 | J43: 1.33 | K43: MoE
B44: Total | C44: =IF(E44=0,"-", _xlfn.IFS(Dashboard!$AL$28="Geimpft", Analysis!G15, Dashboard!$AL$28="Impfung geplant", Analysis!H15, Dashboard!$AL$28="Geimpft & Impfung geplant", (Analysis!G15+Analysis!H15))) -> 0.3619276145 | D44: -0.25 | E44: =GETPIVOTDATA("[Measures].[Anzahl von SaveID]",$B$15) -> 5001 | F44: =IF(E44>=$H$43, 0.01, -0.15) -> 0.01 | G44: 1 | H44: =IF(E44<$H$43,0.01,-0.15) -> -0.15 | I44: =IF(AND(E44<$H$43,E44>0),IF(C44=0, 0.19, IF(C44=1, 1.26, (C44+0.23))),-0.15) -> -0.15 | J44: =$J$43 -> 1.33 | K44: =IF(E44>=$K$41, 1.96*(SQRT((C44*(1-C44))/E44)), "n/a") -> 0.01331905705
B45: Baden-Württemberg | C45: =IF(E45=0,"-", _xlfn.IFS(Dashboard!$AL$28="Geimpft", Analysis!G16, Dashboard!$AL$28="Impfung geplant", Analysis!H16, Dashboard!$AL$28="Geimpft & Impfung geplant", (Analysis!G16+Analysis!H16))) -> 0.3406593407 | D45: =D44 -> -0.25 | E45: =GETPIVOTDATA("[Measures].[Anzahl von SaveID]",$B$15,"[Influenza_Dashboard_raw data].[QMktSize_6_1]","[Influenza_Dashboard_raw data].[QMktSize_6_1].&[Baden-Württemberg]") -> 637 | F45: =IF(E45>=$H$43, 0.01, -0.15) -> 0.01 | G45: 2 | H45: =IF(E45<$H$43,0.01,-0.15) -> -0.15 | I45: =IF(AND(E45<$H$43,E45>0),IF(C45=0, 0.19, IF(C45=1, 1.26, (C45+0.23))),-0.15) -> -0.15 | J45: =$J$43 -> 1.33 | K45: =IF(E45>=$K$41, 1.96*(SQRT((C45*(1-C45))/E45)), "n/a") -> 0.03680454346
B46: Bayern | C46: =IF(E46=0,"-", _xlfn.IFS(Dashboard!$AL$28="Geimpft", Analysis!G17, Dashboard!$AL$28="Impfung geplant", Analysis!H17, Dashboard!$AL$28="Geimpft & Impfung geplant", (Analysis!G17+Analysis!H17))) -> 0.3469910371 | D46: =D45 -> -0.25 | E46: =GETPIVOTDATA("[Measures].[Anzahl von SaveID]",$B$15,"[Influenza_Dashboard_raw data].[QMktSize_6_1]","[Influenza_Dashboard_raw data].[QMktSize_6_1].&[Bayern]") -> 781 | F46: 0.01 | G46: 3 | H46: -0.15 | I46: -0.15 | J46: =$J$43 -> 1.33 | K46: 0.03338483653
B47: Berlin | C47: =IF(E47=0,"-", _xlfn.IFS(Dashboard!$AL$28="Geimpft", Analysis!G18, Dashboard!$AL$28="Impfung geplant", Analysis!H18, Dashboard!$AL$28="Geimpft & Impfung geplant", (Analysis!G18+Analysis!H18))) -> 0.4391304348 | D47: =D46 -> -0.25 | E47: =GETPIVOTDATA("[Measures].[Anzahl von SaveID]",$B$15,"[Influenza_Dashboard_raw data].[QMktSize_6_1]","[Influenza_Dashboard_raw data].[QMktSize_6_1].&[Berlin]") -> 230 | F47: 0.01 | G47: 4 | H47: -0.15 | I47: -0.15 | J47: 1.33 | K47: 0.06413865661
B48: Brandenburg | C48: =IF(E48=0,"-", _xlfn.IFS(Dashboard!$AL$28="Geimpft", Analysis!G19, Dashboard!$AL$28="Impfung geplant", Analysis!H19, Dashboard!$AL$28="Geimpft & Impfung geplant", (Analysis!G19+Analysis!H19))) -> 0.3525641026 | D48: -0.25 | E48: =GETPIVOTDATA("[Measures].[Anzahl von SaveID]",$B$15,"[Influenza_Dashboard_raw data].[QMktSize_6_1]","[Influenza_Dashboard_raw data].[QMktSize_6_1].&[Brandenburg]") -> 156 | F48: 0.01 | G48: 5 | H48: -0.15 | I48: -0.15 | J48: 1.33 | K48: 0.07497409039
B49: Bremen | C49: =IF(E49=0,"-", _xlfn.IFS(Dashboard!$AL$28="Geimpft", Analysis!G20, Dashboard!$AL$28="Impfung geplant", Analysis!H20, Dashboard!$AL$28="Geimpft & Impfung geplant", (Analysis!G20+Analysis!H20))) -> 0.2894736842 | D49: -0.25 | E49: =GETPIVOTDATA("[Measures].[Anzahl von SaveID]",$B$15,"[Influenza_Dashboard_raw data].[QMktSize_6_1]","[Influenza_Dashboard_raw data].[QMktSize_6_1].&[Bremen]") -> 38 | F49: 0.01 | G49: 6 | H49: -0.15 | I49: -0.15 | J49: 1.33 | K49: 0.1441978885
B50: Hamburg | C50: =IF(E50=0,"-", _xlfn.IFS(Dashboard!$AL$28="Geimpft", Analysis!G21, Dashboard!$AL$28="Impfung geplant", Analysis!H21, Dashboard!$AL$28="Geimpft & Impfung geplant", (Analysis!G21+Analysis!H21))) -> 0.4017857143 | D50: -0.25 | E50: =GETPIVOTDATA("[Measures].[Anzahl von SaveID]",$B$15,"[Influenza_Dashboard_raw data].[QMktSize_6_1]","[Influenza_Dashboard_raw data].[QMktSize_6_1].&[Hamburg]") -> 112 | F50: 0.01 | G50: 7 | H50: -0.15 | I50: -0.15 | J50: 1.33 | K50: 0.0907972501
B51: Hessen | C51: =IF(E51=0,"-", _xlfn.IFS(Dashboard!$AL$28="Geimpft", Analysis!G22, Dashboard!$AL$28="Impfung geplant", Analysis!H22, Dashboard!$AL$28="Geimpft & Impfung geplant", (Analysis!G22+Analysis!H22))) -> 0.3482849604 | D51: -0.25 | E51: =GETPIVOTDATA("[Measures].[Anzahl von SaveID]",$B$15,"[Influenza_Dashboard_raw data].[QMktSize_6_1]","[Influenza_Dashboard_raw data].[QMktSize_6_1].&[Hessen]") -> 379 | F51: 0.01 | G51: 8 | H51: -0.15 | I51: -0.15 | J51: 1.33 | K51: 0.04796591115
B52: Mecklenburg-Vorpommern | C52: =IF(E52=0,"-", _xlfn.IFS(Dashboard!$AL$28="Geimpft", Analysis!G23, Dashboard!$AL$28="Impfung geplant", Analysis!H23, Dashboard!$AL$28="Geimpft & Impfung geplant", (Analysis!G23+Analysis!H23))) -> 0.2941176471 | D52: -0.25 | E52: =GETPIVOTDATA("[Measures].[Anzahl von SaveID]",$B$15,"[Influenza_Dashboard_raw data].[QMktSize_6_1]","[Influenza_Dashboard_raw data].[QMktSize_6_1].&[Mecklenburg-Vorpommern]") -> 102 | F52: 0.01 | G52: 9 | H52: -0.15 | I52: -0.15 | J52: 1.33 | K52: 0.08842655166
B53: Niedersachsen | C53: =IF(E53=0,"-", _xlfn.IFS(Dashboard!$AL$28="Geimpft", Analysis!G24, Dashboard!$AL$28="Impfung geplant", Analysis!H24, Dashboard!$AL$28="Geimpft & Impfung geplant", (Analysis!G24+Analysis!H24))) -> 0.3933747412 | D53: -0.25 | E53: =GETPIVOTDATA("[Measures].[Anzahl von SaveID]",$B$15,"[Influenza_Dashboard_raw data].[QMktSize_6_1]","[Influenza_Dashboard_raw data].[QMktSize_6_1].&[Niedersachsen]") -> 483 | F53: 0.01 | G53: 10 | H53: -0.15 | I53: -0.15 | J53: 1.33 | K53: 0.04356582934
B54: Nordrhein-Westfalen | C54: =IF(E54=0,"-", _xlfn.IFS(Dashboard!$AL$28="Geimpft", Analysis!G25, Dashboard!$AL$28="Impfung geplant", Analysis!H25, Dashboard!$AL$28="Geimpft & Impfung geplant", (Analysis!G25+Analysis!H25))) -> 0.3924284395 | D54: -0.25 | E54: =GETPIVOTDATA("[Measures].[Anzahl von SaveID]",$B$15,"[Influenza_Dashboard_raw data].[QMktSize_6_1]","[Influenza_Dashboard_raw data].[QMktSize_6_1].&[Nordrhein-Westfalen]") -> 1083 | F54: 0.01 | G54: 11 | H54: -0.15 | I54: -0.15 | J54: 1.33 | K54: 0.02908176751
B55: Rheinland-Pfalz | C55: =IF(E55=0,"-", _xlfn.IFS(Dashboard!$AL$28="Geimpft", Analysis!G26, Dashboard!$AL$28="Impfung geplant", Analysis!H26, Dashboard!$AL$28="Geimpft & Impfung geplant", (Analysis!G26+Analysis!H26))) -> 0.3090128755 | D55: -0.25 | E55: =GETPIVOTDATA("[Measures].[Anzahl von SaveID]",$B$15,"[Influenza_Dashboard_raw data].[QMktSize_6_1]","[Influenza_Dashboard_raw data].[QMktSize_6_1].&[Rheinland-Pfalz]") -> 233 | F55: 0.01 | G55: 12 | H55: -0.15 | I55: -0.15 | J55: 1.33 | K55: 0.05933369243
B56: Saarland | C56: =IF(E56=0,"-", _xlfn.IFS(Dashboard!$AL$28="Geimpft", Analysis!G27, Dashboard!$AL$28="Impfung geplant", Analysis!H27, Dashboard!$AL$28="Geimpft & Impfung geplant", (Analysis!G27+Analysis!H27))) -> 0.3220338983 | D56: -0.25 | E56: =GETPIVOTDATA("[Measures].[Anzahl von SaveID]",$B$15,"[Influenza_Dashboard_raw data].[QMktSize_6_1]","[Influenza_Dashboard_raw data].[QMktSize_6_1].&[Saarland]") -> 59 | F56: 0.01 | G56: 13 | H56: -0.15 | I56: -0.15 | J56: 1.33 | K56: 0.1192298095
B57: Sachsen | C57: =IF(E57=0,"-", _xlfn.IFS(Dashboard!$AL$28="Geimpft", Analysis!G28, Dashboard!$AL$28="Impfung geplant", Analysis!H28, Dashboard!$AL$28="Geimpft & Impfung geplant", (Analysis!G28+Analysis!H28))) -> 0.3257575758 | D57: -0.25 | E57: =GETPIVOTDATA("[Measures].[Anzahl von SaveID]",$B$15,"[Influenza_Dashboard_raw data].[QMktSize_6_1]","[Influenza_Dashboard_raw data].[QMktSize_6_1].&[Sachsen]") -> 264 | F57: 0.01 | G57: 14 | H57: -0.15 | I57: -0.15 | J57: 1.33 | K57: 0.05653396007
B58: Sachsen-Anhalt | C58: =IF(E58=0,"-", _xlfn.IFS(Dashboard!$AL$28="Geimpft", Analysis!G29, Dashboard!$AL$28="Impfung geplant", Analysis!H29, Dashboard!$AL$28="Geimpft & Impfung geplant", (Analysis!G29+Analysis!H29))) -> 0.3088235294 | D58: -0.25 | E58: =GETPIVOTDATA("[Measures].[Anzahl von SaveID]",$B$15,"[Influenza_Dashboard_raw data].[QMktSize_6_1]","[Influenza_Dashboard_raw data].[QMktSize_6_1].&[Sachsen-Anhalt]") -> 136 | F58: 0.01 | G58: 15 | H58: -0.15 | I58: -0.15 | J58: 1.33 | K58: 0.07764907398
B59: Schleswig-Holstein | C59: =IF(E59=0,"-", _xlfn.IFS(Dashboard!$AL$28="Geimpft", Analysis!G30, Dashboard!$AL$28="Impfung geplant", Analysis!H30, Dashboard!$AL$28="Geimpft & Impfung geplant", (Analysis!G30+Analysis!H30))) -> 0.3559322034 | D59: -0.25 | E59: =GETPIVOTDATA("[Measures].[Anzahl von SaveID]",$B$15,"[Influenza_Dashboard_raw data].[QMktSize_6_1]","[Influenza_Dashboard_raw data].[QMktSize_6_1].&[Schleswig-Holstein]") -> 177 | F59: 0.01 | G59: 16 | H59: -0.15 | I59: -0.15 | J59: 1.33 | K59: 0.07053730655
B60: Thüringen | C60: =IF(E60=0,"-", _xlfn.IFS(Dashboard!$AL$28="Geimpft", Analysis!G31, Dashboard!$AL$28="Impfung geplant", Analysis!H31, Dashboard!$AL$28="Geimpft & Impfung geplant", (Analysis!G31+Analysis!H31))) -> 0.3893129771 | D60: -0.25 | E60: =GETPIVOTDATA("[Measures].[Anzahl von SaveID]",$B$15,"[Influenza_Dashboard_raw data].[QMktSize_6_1]","[Influenza_Dashboard_raw data].[QMktSize_6_1].&[Thüringen]") -> 131 | F60: 0.01 | G60: 17 | H60: -0.15 | I60: -0.15 | J60: 1.33 | K60: 0.083498603
B61: Gesamt | E61: ="Teilnehmende n="&GETPIVOTDATA("[Measures].[Anzahl von SaveID]",$B$15) -> Teilnehmende n=5001
B66: Konfidenzintervall | C66: 0.95
B67: Z-score | C67: 1.96
B68: Impfquote (p) | C68: 0.31
B69: Sample per Bundesland/Total | C69: 297
B70: MoE | C70: =C67*(SQRT((C68*(1-C68))/C69)) -> 0.05259969658
C89: <60 Jahre | D89: ≥60 Jahre
B90: W1 (22.10.-01.11.24) | C90: =IFERROR(GETPIVOTDATA("[Measures].[Vaccination rate]",$B$101,"[Influenza_Dashboard_raw data].[Wave]","[Influenza_Dashboard_raw data].[Wave].&[1 (KW 43/44)]","[Influenza_Dashboard_raw data].[age_category2]","[Influenza_Dashboard_raw data].[age_category2].&[0]"),NA()) -> 0.2138157895 | D90: =IFERROR(GETPIVOTDATA("[Measures].[Vaccination rate]",$B$101,"[Influenza_Dashboard_raw data].[Wave]","[Influenza_Dashboard_raw data].[Wave].&[1 (KW 43/44)]","[Influenza_Dashboard_raw data].[age_category2]","[Influenza_Dashboard_raw data].[age_category2].&[1]"),NA()) -> 0.3132183908
B91: W2 (04.11.-15.11.24) | C91: =IFERROR(GETPIVOTDATA("[Measures].[Vaccination rate]",$B$101,"[Influenza_Dashboard_raw data].[Wave]","[Influenza_Dashboard_raw data].[Wave].&[2 (KW 45/46)]","[Influenza_Dashboard_raw data].[age_category2]","[Influenza_Dashboard_raw data].[age_category2].&[0]"),NA()) -> 0.2166666667 | D91: =IFERROR(GETPIVOTDATA("[Measures].[Vaccination rate]",$B$101,"[Influenza_Dashboard_raw data].[Wave]","[Influenza_Dashboard_raw data].[Wave].&[2 (KW 45/46)]","[Influenza_Dashboard_raw data].[age_category2]","[Influenza_Dashboard_raw data].[age_category2].&[1]"),NA()) -> 0.3457142857
B92: W3 (18.11.-01.12.24) | C92: =IFERROR(GETPIVOTDATA("[Measures].[Vaccination rate]",$B$101,"[Influenza_Dashboard_raw data].[Wave]","[Influenza_Dashboard_raw data].[Wave].&[3 (KW 47/48)]","[Influenza_Dashboard_raw data].[age_category2]","[Influenza_Dashboard_raw data].[age_category2].&[0]"),NA()) -> 0.2790697674 | D92: =IFERROR(GETPIVOTDATA("[Measures].[Vaccination rate]",$B$101,"[Influenza_Dashboard_raw data].[Wave]","[Influenza_Dashboard_raw data].[Wave].&[3 (KW 47/48)]","[Influenza_Dashboard_raw data].[age_category2]","[Influenza_Dashboard_raw data].[age_category2].&[1]"),NA()) -> 0.4756446991
B93: W4 (02.12.-13.12.24) | C93: =IFERROR(GETPIVOTDATA("[Measures].[Vaccination rate]",$B$101,"[Influenza_Dashboard_raw data].[Wave]","[Influenza_Dashboard_raw data].[Wave].&[4 (KW 49/50)]","[Influenza_Dashboard_raw data].[age_category2]","[Influenza_Dashboard_raw data].[age_category2].&[0]"),NA()) -> 0.1933333333 | D93: =IFERROR(GETPIVOTDATA("[Measures].[Vaccination rate]",$B$101,"[Influenza_Dashboard_raw data].[Wave]","[Influenza_Dashboard_raw data].[Wave].&[4 (KW 49/50)]","[Influenza_Dashboard_raw data].[age_category2]","[Influenza_Dashboard_raw data].[age_category2].&[1]"),NA()) -> 0.4544159544
B94: W5 (03.02.-07.02.25) | C94: =IFERROR(GETPIVOTDATA("[Measures].[Vaccination rate]",$B$101,"[Influenza_Dashboard_raw data].[Wave]","[Influenza_Dashboard_raw data].[Wave].&[5 (KW 06/07)]","[Influenza_Dashboard_raw data].[age_category2]","[Influenza_Dashboard_raw data].[age_category2].&[0]"),NA()) -> 0.2533333333 | D94: =IFERROR(GETPIVOTDATA("[Measures].[Vaccination rate]",$B$101,"[Influenza_Dashboard_raw data].[Wave]","[Influenza_Dashboard_raw data].[Wave].&[5 (KW 06/07)]","[Influenza_Dashboard_raw data].[age_category2]","[Influenza_Dashboard_raw data].[age_category2].&[1]"),NA()) -> 0.5014285714
C101: Spaltenbeschriftungen
C102: 0 | E102: 1 | G102: Gesamt: Anzahl von SaveID | H102: Gesamt: Vaccination rate
B103: Zeilenbeschriftungen | C103: Anzahl von SaveID | D103: Vaccination rate | E103: Anzahl von SaveID | F103: Vaccination rate
B104: 1 (KW 43/44) | C104: 304 | D104: 0.2138157895 | E104: 696 | F104: 0.3132183908 | G104: 1000 | H104: 0.283
B105: 2 (KW 45/46) | C105: 300 | D105: 0.2166666667 | E105: 700 | F105: 0.3457142857 | G105: 1000 | H105: 0.307
B106: 3 (KW 47/48) | C106: 301 | D106: 0.2790697674 | E106: 698 | F106: 0.4756446991 | G106: 999 | H106: 0.4164164164
B107: 4 (KW 49/50) | C107: 300 | D107: 0.1933333333 | E107: 702 | F107: 0.4544159544 | G107: 1002 | H107: 0.376247505
B108: 5 (KW 06/07) | C108: 300 | D108: 0.2533333333 | E108: 700 | F108: 0.5014285714 | G108: 1000 | H108: 0.427
B109: Gesamtergebnis | C109: 1505 | D109: 0.2312292359 | E109: 3496 | F109: 0.4181922197 | G109: 5001 | H109: 0.3619276145

Sheet Dashboard
AL22: Influenza Impfquote
AL26: Bitte unten auswählen
AL28: Geimpft
